bitfinex/quotes_BTCUSD_20240607
["timestamp","ask_amount","ask_price","bid_price","bid_amount"]
[1717766192823,0.00086,71174.0,71167.0,0.16040544]
[1717766193026,0.01751638,71174.0,71167.0,0.16040544]
[1717766193394,0.00086,71174.0,71167.0,0.16040544]
[1717766193585,0.00086,71174.0,71167.0,0.16023649]
[1717766193791,0.00086,71174.0,71168.0,0.00016895]
[1717766193963,0.00086,71174.0,71169.0,0.14458788]
[1717766194185,0.00086,71174.0,71169.0,0.16038908]
[1717766194788,0.00086,71174.0,71169.0,0.16022013]
[1717766195810,0.00086,71174.0,71169.0,0.16122013]
[1717766196842,0.00086,71174.0,71169.0,0.16222013]
[1717766198244,0.00086,71174.0,71171.0,0.00016895]
[1717766198448,0.00086,71174.0,71172.0,0.14458788]
[1717766198696,0.00086,71174.0,71173.0,0.00016895]
[1717766198903,0.00086,71174.0,71173.0,0.14458788]
[1717766199104,0.00086,71174.0,71173.0,0.16033836]
[1717766199523,0.00086,71174.0,71173.0,0.24313836]
[1717766199753,0.00086,71174.0,71173.0,0.38364036]
[1717766200212,0.00086,71174.0,71173.0,0.5294256]
[1717766200629,0.00686,71174.0,71173.0,0.38364036]
[1717766200829,0.00186,71174.0,71173.0,0.38364036]
[1717766201130,0.00086,71174.0,71173.0,0.38664036]
[1717766201477,0.00086,71174.0,71173.0,0.38964036]
[1717766201694,0.00086,71174.0,71173.0,0.38947141]
[1717766201905,0.00086,71174.0,71173.0,0.38964036]
[1717766203503,0.00086,71174.0,71173.0,0.53542427]
[1717766205516,0.00086,71174.0,71173.0,0.38964036]
[1717766208779,0.00086,71174.0,71173.0,0.92284536]
[1717766209000,0.00086,71174.0,71173.0,1.0686273]
[1717766209209,0.00086,71174.0,71173.0,1.2686273]
[1717766209860,0.00086,71174.0,71173.0,1.5496323]
[1717766210056,0.00086,71174.0,71173.0,1.6496323]
[1717766210734,0.00086,71174.0,71173.0,2.22272898]
[1717766210975,0.00086,71174.0,71173.0,2.24362227]
[1717766211176,0.00086,71174.0,71173.0,2.24357747]
[1717766211532,0.00086,71174.0,71173.0,2.23757747]
[1717766211917,0.00086,71174.0,71173.0,2.24057747]
[1717766212143,0.00086,71174.0,71173.0,2.2006373]
[1717766215566,0.00086,71174.0,71173.0,2.20060546]
[1717766217389,0.00086,71174.0,71173.0,2.24254563]
[1717766217589,0.00086,71174.0,71173.0,2.26358291]
[1717766217804,0.00086,71174.0,71173.0,2.41923061]
[1717766218021,0.00086,71174.0,71173.0,2.26341257]
[1717766218253,0.00086,71174.0,71173.0,2.19860546]
[1717766218406,0.00086,71174.0,71173.0,2.2404699]
[1717766218760,0.00086,71174.0,71173.0,2.2394699]
[1717766218937,0.00086,71174.0,71173.0,2.20060546]
[1717766219149,0.00086,71174.0,71173.0,2.24047027]
[1717766219315,0.00086,71174.0,71173.0,2.19860546]
[1717766219545,0.00086,71174.0,71173.0,2.20060546]
[1717766220537,0.00086,71174.0,71173.0,2.05485536]
[1717766220739,0.00086,71174.0,71173.0,2.20060053]
[1717766220982,0.00086,71174.0,71173.0,2.4580831]
[1717766221182,0.00086,71174.0,71173.0,2.23946534]
[1717766221397,0.00086,71174.0,71173.0,2.41621829]
[1717766222147,0.00086,71174.0,71173.0,2.41821829]
[1717766222349,0.00086,71174.0,71173.0,2.4790254]
[1717766222620,0.00086,71174.0,71173.0,2.4810254]
[1717766222822,0.00086,71174.0,71173.0,2.41821829]
[1717766223022,0.00086,71174.0,71173.0,2.4810254]
[1717766223234,0.00086,71174.0,71173.0,2.41821829]
[1717766223365,0.00086,71174.0,71173.0,2.48101285]
[1717766223564,0.00086,71174.0,71173.0,2.41821829]
[1717766224163,0.00872,71200.0,71173.0,2.41821829]
[1717766224164,0.00864,71200.0,71199.0,0.140451]
[1717766224369,0.00864,71200.0,71199.0,1.08388119]
[1717766224588,0.00864,71200.0,71199.0,1.33447182]
[1717766224792,0.00864,71200.0,71199.0,1.29928647]
[1717766225549,0.00864,71200.0,71199.0,1.30128647]
[1717766225906,0.00864,71200.0,71199.0,1.30428647]
[1717766226318,0.00864,71200.0,71199.0,1.58518847]
[1717766226485,0.00864,71200.0,71199.0,1.60627016]
[1717766226700,0.00864,71200.0,71199.0,1.30228647]
[1717766226847,0.00864,71200.0,71199.0,1.45428647]
[1717766227045,0.00864,71200.0,71199.0,1.83518847]
[1717766227257,0.00864,71200.0,71199.0,1.83218847]
[1717766227448,0.00864,71200.0,71199.0,1.83518847]
[1717766227957,0.00864,71200.0,71199.0,2.05376345]
[1717766228431,0.00864,71200.0,71199.0,2.05076345]
[1717766228636,0.00864,71200.0,71199.0,1.95076345]
[1717766228839,0.00864,71200.0,71199.0,2.05376345]
[1717766229158,0.00864,71200.0,71199.0,2.38466545]
[1717766229359,0.00864,71220.0,71219.0,0.62309809]
[1717766229572,0.00864,71220.0,71219.0,1.08373367]
[1717766229719,0.00864,71220.0,71219.0,1.09900927]
[1717766229918,0.00864,71220.0,71219.0,0.95329262]
[1717766230243,0.00864,71220.0,71219.0,1.47978383]
[1717766230400,0.00864,71220.0,71219.0,1.5120339]
[1717766230604,0.00864,71220.0,71219.0,1.83053289]
[1717766230807,0.00864,71220.0,71219.0,1.5837825]
[1717766231007,0.00864,71220.0,71219.0,1.80228282]
[1717766231282,0.00864,71220.0,71219.0,1.80028282]
[1717766231418,0.00864,71220.0,71219.0,1.96245932]
[1717766231618,0.00864,71220.0,71219.0,1.96445932]
[1717766231818,0.00864,71220.0,71219.0,1.92328282]
[1717766232008,0.00864,71220.0,71219.0,2.39139442]
[1717766232221,0.00864,71220.0,71219.0,2.39339442]
[1717766232425,0.00864,71220.0,71219.0,2.62949442]
[1717766232703,0.00864,71220.0,71219.0,2.67129059]
[1717766232906,0.00864,71220.0,71219.0,2.67329059]
[1717766233062,0.00864,71220.0,71219.0,2.67298573]
[1717766233418,0.00864,71220.0,71219.0,2.62918956]
[1717766233625,0.00864,71220.0,71219.0,2.58990096]
[1717766233941,0.00864,71220.0,71219.0,2.59190096]
[1717766234142,0.00864,71220.0,71219.0,2.65259522]
[1717766234400,0.00864,71220.0,71219.0,2.59190096]
[1717766234554,0.00864,71220.0,71219.0,2.59390096]
[1717766235758,0.00864,71220.0,71219.0,2.65659522]
[1717766236045,0.00864,71220.0,71219.0,2.29227093]
[1717766236173,0.00864,71220.0,71219.0,2.59382674]
[1717766236584,0.00864,71220.0,71219.0,2.63550957]
[1717766236784,0.00864,71220.0,71219.0,2.59382674]
[1717766237188,0.00864,71241.0,71239.0,0.001]
[1717766237388,0.00864,71241.0,71240.0,0.73229187]
[1717766237587,0.00864,71241.0,71240.0,0.74717453]
[1717766238346,0.00864,71241.0,71240.0,1.02791553]
[1717766239131,0.00864,71241.0,71240.0,1.2694387]
[1717766239423,0.00864,71241.0,71240.0,1.24836827]
[1717766239905,0.00864,71241.0,71240.0,1.04650418]
[1717766240124,0.00864,71241.0,71240.0,1.24836827]
[1717766240326,0.00864,71241.0,71240.0,1.04750418]
[1717766240765,0.00864,71241.0,71240.0,1.24836827]
[1717766241204,0.00864,71241.0,71240.0,1.04750418]
[1717766241416,0.00864,71241.0,71240.0,1.24836827]
[1717766241827,0.00864,71241.0,71240.0,0.88427668]
[1717766242038,0.00864,71241.0,71240.0,1.24834491]
[1717766242232,0.00864,71241.0,71240.0,1.34834491]
[1717766242477,0.00864,71241.0,71240.0,1.35034491]
[1717766243099,0.00864,71241.0,71240.0,1.35004005]
[1717766243228,0.00864,71241.0,71240.0,1.52054005]
[1717766243986,0.00864,71241.0,71240.0,2.43592205]
[1717766244182,0.00864,71241.0,71240.0,2.43392205]
[1717766244408,0.00864,71241.0,71240.0,2.59602205]
[1717766244530,0.00864,71241.0,71240.0,2.59802205]
[1717766244737,0.00864,71241.0,71240.0,2.60002205]
[1717766244947,0.00364,71241.0,71240.0,2.60002205]
[1717766246757,0.00364,71241.0,71240.0,2.59995957]
[1717766248022,0.00364,71241.0,71240.0,2.60859957]
[1717766252143,0.00364,71241.0,71240.0,2.86505804]
[1717766252433,0.00364,71241.0,71240.0,1.96445295]
[1717766252605,0.00364,71241.0,71240.0,1.86445295]
[1717766252826,0.00364,71241.0,71240.0,1.69395295]
[1717766252827,0.16704,71241.0,71240.0,1.69395295]
[1717766253052,0.16704,71241.0,71240.0,1.03216609]
[1717766253053,0.24844,71241.0,71240.0,1.03216609]
[1717766253262,0.24844,71241.0,71240.0,1.04780862]
[1717766253702,0.00364,71241.0,71240.0,1.53041371]
[1717766253910,0.00364,71241.0,71240.0,1.67841371]
[1717766254403,0.00364,71241.0,71240.0,1.69941371]
[1717766254603,0.00223322,71241.0,71240.0,2.33661318]
[1717766254809,0.00223322,71241.0,71240.0,2.37821303]
[1717766255007,0.00223322,71241.0,71240.0,2.56311303]
[1717766255260,0.00223322,71241.0,71240.0,2.51951318]
[1717766255665,0.00223322,71241.0,71240.0,2.51751318]
[1717766255998,0.00223322,71241.0,71240.0,2.58198217]
[1717766256133,0.00223322,71241.0,71240.0,2.58398217]
[1717766256331,0.00223322,71241.0,71240.0,2.52151318]
[1717766256532,0.00223322,71241.0,71240.0,2.58398217]
[1717766256761,0.00223322,71241.0,71240.0,2.58198217]
[1717766257141,0.00223322,71241.0,71240.0,2.58398217]
[1717766257554,0.00086,71251.0,71250.0,0.4]
[1717766257778,0.00086,71251.0,71250.0,1.40883402]
[1717766257978,0.00086,71251.0,71250.0,1.92879929]
[1717766258140,0.00086,71251.0,71250.0,2.09128922]
[1717766258825,0.00086,71251.0,71250.0,2.34774769]
[1717766259027,0.00086,71251.0,71250.0,2.34974769]
[1717766259215,0.00086,71251.0,71250.0,2.52194969]
[1717766259561,0.00086,71251.0,71250.0,2.52394969]
[1717766259762,0.00086,71251.0,71250.0,2.3230856]
[1717766260074,0.00086,71251.0,71250.0,2.52194969]
[1717766260414,0.00086,71251.0,71250.0,2.56994969]
[1717766260614,0.00086,71251.0,71250.0,2.66994969]
[1717766261160,0.00086,71251.0,71250.0,2.60745976]
[1717766262045,0.00086,71251.0,71250.0,2.60945976]
[1717766263029,0.00086,71251.0,71250.0,2.60915476]
[1717766263460,0.00086,71251.0,71250.0,2.69253449]
[1717766263635,0.00086,71251.0,71250.0,2.07207027]
[1717766263850,0.00086,71251.0,71250.0,2.60875214]
[1717766265101,0.00086,71251.0,71250.0,2.71297681]
[1717766265273,0.00086,71251.0,71250.0,2.60875214]
[1717766265548,0.00086,71251.0,71250.0,2.71305826]
[1717766265750,0.2399,71267.0,71261.0,1.10320409]
[1717766265925,0.2399,71267.0,71261.0,1.90507873]
[1717766266122,0.2399,71267.0,71261.0,1.91954067]
[1717766266644,0.2399,71267.0,71261.0,1.55558496]
[1717766266784,0.2399,71267.0,71261.0,2.1755005]
[1717766266992,0.2399,71267.0,71261.0,2.1775005]
[1717766267873,0.014371,71283.0,71261.0,2.6061585]
[1717766267874,0.1576,71273.0,71261.0,2.6061585]
[1717766268110,0.1576,71273.0,71270.0,1.10311409]
[1717766268349,0.0828,71275.0,71270.0,1.54103302]
[1717766268553,0.0828,71275.0,71270.0,1.91938062]
[1717766268956,0.1576,71277.0,71270.0,2.34800262]
[1717766269885,0.1576,71277.0,71270.0,2.33087012]
[1717766270097,0.1576,71277.0,71270.0,2.33187012]
[1717766270488,0.1576,71277.0,71270.0,2.33387012]
[1717766270712,0.1576,71277.0,71270.0,2.62496062]
[1717766271038,0.1576,71277.0,71270.0,2.47696062]
[1717766271436,0.1576,71277.0,71270.0,2.5186828]
[1717766271613,0.1576,71277.0,71270.0,2.47696062]
[1717766271822,0.1576,71277.0,71270.0,2.27409653]
[1717766272035,0.1576,71277.0,71270.0,1.77077953]
[1717766272036,0.07222824,71276.0,71270.0,1.77077953]
[1717766272234,0.1576,71277.0,71270.0,1.77077953]
[1717766272235,0.08116,71271.0,71270.0,1.70227953]
[1717766272902,0.08116,71271.0,71270.0,1.80197453]
[1717766273175,0.00086,71271.0,71270.0,2.00383862]
[1717766273434,0.00086,71271.0,71270.0,2.0455608]
[1717766273609,0.00086,71271.0,71270.0,2.2165608]
[1717766273842,0.00086,71271.0,71270.0,2.17083862]
[1717766274220,0.014371,71283.0,71282.0,0.72242109]
[1717766274427,0.014371,71283.0,71282.0,1.73200552]
[1717766274589,0.014371,71283.0,71282.0,1.8923954]
[1717766275199,0.014371,71283.0,71282.0,1.93558174]
[1717766275398,0.014371,71283.0,71282.0,2.1403954]
[1717766275580,0.014371,71283.0,71282.0,2.18358174]
[1717766275776,0.014371,71283.0,71282.0,2.03558174]
[1717766275978,0.014371,71283.0,71282.0,1.9923954]
[1717766276296,0.014371,71283.0,71282.0,1.9933954]
[1717766276728,0.014371,71283.0,71282.0,1.9953954]
[1717766277149,0.014371,71283.0,71282.0,1.9933954]
[1717766277345,0.014371,71283.0,71282.0,2.3699954]
[1717766277542,0.014371,71283.0,71282.0,2.1433954]
[1717766277817,0.014371,71283.0,71282.0,1.7148204]
[1717766278166,0.014371,71283.0,71282.0,1.5443204]
[1717766278509,0.014371,71283.0,71282.0,1.9953954]
[1717766278835,0.014371,71283.0,71282.0,1.99537551]
[1717766279167,0.014371,71283.0,71282.0,2.14337551]
[1717766279575,0.014371,71283.0,71282.0,2.42395051]
[1717766279760,0.014371,71283.0,71282.0,2.14337551]
[1717766280165,0.014371,71283.0,71282.0,1.94337551]
[1717766280465,0.014371,71283.0,71282.0,1.99537551]
[1717766282068,0.014371,71283.0,71282.0,1.39024142]
[1717766282279,0.014371,71283.0,71282.0,0.83916642]
[1717766282280,0.170071,71283.0,71282.0,0.83916642]
[1717766282482,0.245371,71283.0,71282.0,0.83916642]
[1717766282837,0.245371,71283.0,71282.0,0.54807592]
[1717766283284,0.245371,71283.0,71282.0,0.54746608]
[1717766284024,0.265371,71283.0,71282.0,0.44746608]
[1717766284454,0.265371,71283.0,71282.0,0.44748382]
[1717766284687,0.265371,71283.0,71282.0,0.30780666]
[1717766284861,0.265371,71283.0,71282.0,0.16025356]
[1717766284862,0.26581191,71283.0,71282.0,0.16025356]
[1717766285264,0.27581191,71283.0,71282.0,0.16025356]
[1717766285462,0.27581191,71283.0,71270.0,0.140309]
[1717766285463,0.17983591,71271.0,71270.0,0.140309]
[1717766285668,0.25513591,71271.0,71270.0,0.43030528]
[1717766285844,0.25513591,71271.0,71270.0,0.28999628]
[1717766286231,0.235,71271.0,71270.0,0.28999628]
[1717766286412,0.235,71271.0,71270.0,0.43030728]
[1717766286619,0.156,71275.0,71274.0,0.140303]
[1717766286862,0.156,71275.0,71274.0,0.60079928]
[1717766287271,0.156,71275.0,71274.0,0.60078627]
[1717766288129,0.156,71275.0,71274.0,0.60278627]
[1717766288570,0.156,71275.0,71274.0,0.43228627]
[1717766289002,0.176,71275.0,71274.0,0.29198327]
[1717766289210,0.24383591,71275.0,71274.0,0.29198327]
[1717766289363,0.24383591,71275.0,71274.0,0.14641893]
[1717766289565,0.24383591,71275.0,71274.0,0.14441893]
[1717766289770,0.2237,71275.0,71274.0,0.14441893]
[1717766289970,0.2237,71275.0,71274.0,0.14641893]
[1717766290387,0.2237,71275.0,71274.0,0.14441893]
[1717766290600,0.2237,71275.0,71274.0,0.14641893]
[1717766290963,0.2237,71275.0,71274.0,0.14441893]
[1717766291161,0.24383591,71275.0,71274.0,0.14441893]
[1717766291377,0.2437,71275.0,71274.0,0.14641893]
[1717766291616,0.2237,71275.0,71274.0,0.14641893]
[1717766291979,0.2237,71275.0,71274.0,0.28672193]
[1717766292265,0.2237,71275.0,71274.0,0.30069414]
[1717766292647,0.24383591,71275.0,71274.0,0.15939114]
[1717766292989,0.24383591,71275.0,71274.0,0.15839114]
[1717766293412,0.24383591,71275.0,71274.0,0.16039114]
[1717766293586,0.24383591,71275.0,71274.0,0.15939114]
[1717766293785,0.24383591,71275.0,71274.0,0.15839114]
[1717766294028,0.24383591,71275.0,71274.0,0.16039114]
[1717766294232,0.2237,71275.0,71274.0,0.16039114]
[1717766294441,0.2437,71275.0,71274.0,0.15839114]
[1717766294807,0.2437,71275.0,71274.0,0.16039114]
[1717766295009,0.24383591,71275.0,71274.0,0.16039114]
[1717766295239,0.2437,71275.0,71274.0,0.16039114]
[1717766295411,0.2437,71275.0,71274.0,0.15939114]
[1717766295412,0.2237,71275.0,71274.0,0.15939114]
[1717766295614,0.2237,71275.0,71274.0,0.29969414]
[1717766296444,0.2237,71275.0,71274.0,0.29769414]
[1717766296682,0.2237,71275.0,71274.0,0.29969414]
[1717766296874,0.2331,71280.0,71278.0,0.140294]
[1717766297094,0.2331,71280.0,71279.0,0.14441893]
[1717766297248,0.2531,71280.0,71279.0,0.15738966]
[1717766297435,0.2331,71280.0,71279.0,0.15738966]
[1717766298262,0.2531,71280.0,71279.0,0.15738966]
[1717766299534,0.2331,71280.0,71279.0,0.15738966]
[1717766299742,0.2331,71280.0,71279.0,0.29768266]
[1717766299947,0.014371,71283.0,71279.0,0.29768266]
[1717766299948,0.014371,71283.0,71282.0,0.140287]
[1717766300120,0.014371,71283.0,71282.0,0.38470593]
[1717766300351,0.014371,71283.0,71282.0,0.39765132]
[1717766300556,0.014371,71283.0,71282.0,0.54320471]
[1717766301495,0.014371,71283.0,71282.0,0.54520471]
[1717766301868,0.256371,71283.0,71282.0,0.54520471]
[1717766302578,0.276371,71283.0,71282.0,0.54520471]
[1717766302783,0.256371,71283.0,71282.0,0.54520471]
[1717766303619,0.256371,71283.0,71282.0,0.54620471]
[1717766304206,0.014371,71283.0,71282.0,0.54620471]
[1717766305320,0.034371,71283.0,71282.0,0.40591771]
[1717766305732,0.03450691,71283.0,71282.0,0.40591154]
[1717766306712,0.02950691,71283.0,71282.0,0.40591154]
[1717766307350,0.02950691,71283.0,71282.0,0.54619854]
[1717766307588,0.009371,71283.0,71282.0,0.54619854]
[1717766309694,0.010231,71283.0,71282.0,0.54619854]
[1717766313415,0.030231,71283.0,71282.0,0.54619854]
[1717766313863,0.030231,71283.0,71282.0,0.30591154]
[1717766313864,0.03036691,71283.0,71282.0,0.30591154]
[1717766314499,0.26226691,71283.0,71282.0,0.30591154]
[1717766314945,0.26226691,71283.0,71282.0,0.29296615]
[1717766315149,0.26226691,71283.0,71282.0,0.16072578]
[1717766318635,0.26257191,71283.0,71282.0,0.16072578]
[1717766319032,0.26257191,71283.0,71282.0,0.14741893]
[1717766319447,0.26257191,71283.0,71282.0,0.16075543]
[1717766319619,0.26257191,71283.0,71282.0,0.15975543]
[1717766319962,0.26257191,71283.0,71282.0,0.16075543]
[1717766320165,0.27257191,71283.0,71282.0,0.16075543]
[1717766320371,0.27257191,71283.0,71282.0,0.15775543]
[1717766320573,0.26257191,71283.0,71282.0,0.15975543]
[1717766320796,0.26257191,71283.0,71282.0,0.16075543]
[1717766321017,0.26257191,71283.0,71282.0,0.15875543]
[1717766321425,0.26257191,71283.0,71282.0,0.16075543]
[1717766322148,0.26257191,71283.0,71282.0,0.15875543]
[1717766322766,0.26257191,71283.0,71282.0,0.15775543]
[1717766323191,0.26257191,71283.0,71282.0,0.15875543]
[1717766323602,0.26257191,71283.0,71282.0,0.15975543]
[1717766323930,0.242131,71283.0,71282.0,0.15975543]
[1717766324177,0.242131,71283.0,71282.0,0.16075543]
[1717766324591,0.262131,71283.0,71282.0,0.16075543]
[1717766325313,0.26226691,71283.0,71282.0,0.16075543]
[1717766325662,0.26226691,71283.0,71282.0,0.14741893]
[1717766326016,0.26226691,71283.0,71282.0,0.15904647]
[1717766329615,0.40285691,71283.0,71282.0,0.15904647]
[1717766330073,0.40285691,71283.0,71282.0,0.14741893]
[1717766330475,0.40285691,71283.0,71282.0,0.1590345]
[1717766331825,0.26257191,71283.0,71282.0,0.1590345]
[1717766332231,0.030231,71283.0,71282.0,0.1590345]
[1717766332433,0.010231,71283.0,71282.0,0.1590345]
[1717766332637,0.03036691,71283.0,71282.0,0.1590345]
[1717766333407,0.010231,71283.0,71282.0,0.1590345]
[1717766334233,0.010231,71283.0,71282.0,0.2993215]
[1717766336034,0.010231,71283.0,71282.0,0.44487529]
[1717766336260,0.010231,71283.0,71282.0,0.44487642]
[1717766336261,0.030231,71283.0,71282.0,0.44487642]
[1717766336438,0.010231,71283.0,71282.0,0.44487642]
[1717766336645,0.373866,71293.0,71282.0,0.44487642]
[1717766336646,0.03013591,71300.0,71299.0,99.50884976]
[1717766337065,0.03013591,71300.0,71299.0,99.52041167]
[1717766337269,0.45089191,71300.0,71299.0,99.52041167]
[1717766338370,0.17038791,71300.0,71299.0,99.52041167]
[1717766338775,0.17038791,71300.0,71299.0,0.01156191]
[1717766339223,0.02,71284.0,71283.0,0.140285]
[1717766339443,0.02013591,71284.0,71283.0,0.43026077]
[1717766339616,0.02,71286.0,71283.0,0.4418659]
[1717766339821,0.02,71286.0,71284.0,0.28997577]
[1717766340129,0.02013591,71286.0,71285.0,0.01159594]
[1717766340271,0.02013591,71286.0,71285.0,0.30157025]
[1717766341354,0.02013591,71286.0,71285.0,0.28997431]
[1717766341533,0.02013591,71286.0,71285.0,0.30357025]
[1717766343038,0.02013591,71286.0,71285.0,0.30457025]
[1717766343203,0.02,71287.0,71285.0,0.30457025]
[1717766343413,0.02,71287.0,71286.0,0.28997431]
[1717766343614,0.02013591,71287.0,71286.0,0.28997431]
[1717766343809,0.02013591,71287.0,71286.0,0.30157468]
[1717766344720,0.02013591,71287.0,71286.0,0.30357468]
[1717766345807,0.02,71297.0,71286.0,0.30357468]
[1717766346089,0.02,71293.0,71291.0,0.28468793]
[1717766346309,0.02,71294.0,71291.0,0.28468793]
[1717766346511,0.02,71294.0,71292.0,0.15778144]
[1717766346714,0.02,71296.0,71293.0,0.28996484]
[1717766346841,0.02,71297.0,71294.0,0.14554591]
[1717766347059,0.02,71297.0,71291.0,0.140269]
[1717766347060,0.02,71297.0,71295.0,0.30217444]
[1717766347263,0.02,71297.0,71295.0,0.15662853]
[1717766347468,0.02,71296.0,71295.0,0.15662853]
[1717766347720,0.02013591,71296.0,71295.0,0.15662853]
[1717766347884,0.02,71298.0,71295.0,0.15662853]
[1717766348934,0.02,71299.0,71295.0,0.15662853]
[1717766349066,0.02,71302.0,71295.0,0.15662853]
[1717766349276,0.02,71302.0,71295.0,0.15862853]
[1717766349474,0.02,71300.0,71295.0,0.15862853]
[1717766349671,0.02,71300.0,71299.0,100.0]
[1717766349937,0.02,71304.0,71299.0,100.30212761]
[1717766350142,0.02,71302.0,71300.0,0.14441893]
[1717766350348,0.02,71306.0,71301.0,0.43020842]
[1717766350550,0.02,71305.0,71301.0,0.29682895]
[1717766350698,0.02,71305.0,71302.0,0.14553779]
[1717766350893,0.02,71304.0,71303.0,0.14441893]
[1717766351094,0.06298182,71311.0,71303.0,0.15655927]
[1717766351095,0.02,71309.0,71303.0,0.15655927]
[1717766351339,0.01649352,71310.0,71309.0,0.306734]
[1717766351340,0.02,71310.0,71309.0,0.306734]
[1717766351516,0.02,71310.0,71309.0,0.14441893]
[1717766351716,0.02013591,71310.0,71309.0,0.28994016]
[1717766351921,0.02013591,71310.0,71309.0,0.30206723]
[1717766352252,0.02013591,71310.0,71309.0,0.156546]
[1717766352613,0.02013591,71310.0,71309.0,0.30206706]
[1717766353222,0.02013591,71310.0,71309.0,0.156546]
[1717766353853,0.02013591,71310.0,71309.0,0.30206703]
[1717766354053,0.02,71310.0,71309.0,0.30206703]
[1717766354259,0.02,71310.0,71309.0,0.158546]
[1717766354462,0.02013591,71310.0,71309.0,0.158546]
[1717766355286,0.02,71310.0,71309.0,0.159546]
[1717766355682,0.02013591,71310.0,71309.0,0.159546]
[1717766356396,0.02,71310.0,71309.0,0.159546]
[1717766356800,0.02013591,71310.0,71309.0,0.159546]
[1717766357223,0.00862,71313.0,71310.0,0.1545]
[1717766357447,0.00862,71313.0,71312.0,0.14441893]
[1717766357799,0.00862,71313.0,71312.0,0.15643365]
[1717766358481,0.00862,71313.0,71312.0,0.52026862]
[1717766360760,0.00862,71313.0,71312.0,0.52126862]
[1717766360955,0.00862,71313.0,71312.0,0.52326862]
[1717766362168,0.00862,71313.0,71312.0,0.52226862]
[1717766362509,0.02875591,71313.0,71312.0,0.44216862]
[1717766362716,0.02875591,71313.0,71312.0,0.44516862]
[1717766363117,0.02875591,71313.0,71312.0,0.30494062]
[1717766363530,0.25955591,71313.0,71312.0,0.16052169]
[1717766363728,0.25955591,71313.0,71312.0,0.15943365]
[1717766364687,0.25955591,71313.0,71312.0,0.01301472]
[1717766364978,0.25955591,71313.0,71312.0,0.001]
[1717766364979,0.26955591,71313.0,71312.0,0.001]
[1717766365181,0.26955591,71313.0,71312.0,0.003]
[1717766365558,0.26955591,71313.0,71312.0,0.002]
[1717766365965,0.24359795,71313.0,71312.0,0.002]
[1717766366287,0.23359795,71313.0,71312.0,0.002]
[1717766366702,0.23359795,71313.0,71312.0,0.003]
[1717766366938,0.00279795,71313.0,71312.0,0.14741893]
[1717766367171,0.00279795,71313.0,71312.0,0.14641893]
[1717766367376,0.00266204,71313.0,71312.0,0.15841016]
[1717766367498,0.00279795,71313.0,71312.0,0.15941016]
[1717766367707,0.00279795,71313.0,71312.0,0.30492236]
[1717766368128,0.00862,71317.0,71312.0,0.30492236]
[1717766368329,0.00862,71317.0,71313.0,0.36693113]
[1717766368549,0.00266204,71314.0,71313.0,0.50715713]
[1717766368746,0.00279795,71314.0,71313.0,0.50715713]
[1717766368954,0.00266204,71314.0,71313.0,0.43015713]
[1717766369929,0.00266204,71314.0,71313.0,0.29193113]
[1717766370187,0.02,71341.0,71320.0,0.1]
[1717766370385,0.02,71341.0,71314.0,0.2323]
[1717766370386,0.02,71337.0,71326.0,0.14441893]
[1717766370535,0.02,71339.0,71327.0,0.1455122]
[1717766370738,0.02,71337.0,71328.0,0.28993113]
[1717766371028,0.00862,71343.0,71329.0,0.1455122]
[1717766371029,0.02,71333.0,71329.0,0.1455122]
[1717766371244,0.0802,71334.0,71330.0,0.14441893]
[1717766371452,0.1864,71331.0,71316.0,0.02085905]
[1717766371656,0.1864,71331.0,71317.0,0.43011829]
[1717766371856,0.1864,71331.0,71318.0,0.14548236]
[1717766372068,0.02,71329.0,71326.0,0.002]
[1717766372274,0.1664,71331.0,71327.0,0.14441893]
[1717766372275,0.1864,71331.0,71327.0,0.14441893]
[1717766372653,0.1664,71331.0,71330.0,0.002]
[1717766372877,0.1664,71331.0,71330.0,0.14747203]
[1717766373077,0.0802,71334.0,71327.0,0.14441893]
[1717766373251,0.0802,71334.0,71330.0,0.01228404]
[1717766373432,0.0802,71334.0,71328.0,0.001]
[1717766373634,0.0802,71334.0,71331.0,0.012272]
[1717766373842,0.0802,71334.0,71329.0,0.14441893]
[1717766374037,0.0802,71334.0,71330.0,0.14547693]
[1717766374239,0.3473,71336.0,71331.0,0.28989031]
[1717766374240,0.3673,71336.0,71331.0,0.28989031]
[1717766374441,0.3673,71336.0,71332.0,0.14547138]
[1717766374442,0.3473,71336.0,71332.0,0.14547138]
[1717766374674,0.3473,71336.0,71333.0,0.14441893]
[1717766374873,0.3473,71336.0,71333.0,0.15668651]
[1717766375191,0.1773,71336.0,71333.0,0.14441893]
[1717766375370,0.1773,71336.0,71334.0,0.01225023]
[1717766375557,0.1773,71336.0,71334.0,0.15666916]
[1717766375558,0.1573,71336.0,71334.0,0.15666916]
[1717766375762,0.1773,71336.0,71334.0,0.15666916]
[1717766375962,0.1573,71336.0,71335.0,0.28988824]
[1717766376181,0.1573,71336.0,71335.0,0.15666695]
[1717766376804,0.02,71340.0,71335.0,0.15666695]
[1717766377391,0.2382,71341.0,71335.0,0.15666695]
[1717766377392,0.02,71342.0,71335.0,0.15666695]
[1717766377734,0.02,71342.0,71336.0,0.14545919]
[1717766377945,0.02,71342.0,71337.0,0.14441893]
[1717766378145,0.02,71342.0,71337.0,0.15666729]
[1717766379242,0.02,71342.0,71338.0,0.14546621]
[1717766379501,0.02,71342.0,71339.0,0.28988514]
[1717766379702,0.019,71342.0,71340.0,0.14546621]
[1717766379835,0.019,71342.0,71341.0,0.28988514]
[1717766380032,0.019,71342.0,71341.0,0.30256613]
[1717766381894,0.00862,71343.0,71341.0,0.30256613]
[1717766382103,0.00862,71343.0,71342.0,0.14546621]
[1717766382365,0.00862,71343.0,71342.0,0.28988514]
[1717766382551,0.00862,71343.0,71342.0,0.30251803]
[1717766383274,0.00862,71343.0,71342.0,0.44268703]
[1717766384148,0.00862,71343.0,71342.0,0.44368703]
[1717766384514,0.00862,71343.0,71342.0,0.6628429]
[1717766384765,0.00862,71343.0,71342.0,0.67928703]
[1717766384961,0.00862,71343.0,71342.0,0.67828703]
[1717766385998,0.00862,71343.0,71342.0,0.68028703]
[1717766386192,0.00862,71343.0,71342.0,0.91933116]
[1717766386348,0.00862,71343.0,71342.0,0.68028703]
[1717766387155,0.00862,71343.0,71342.0,0.89844734]
[1717766387566,0.00862,71343.0,71342.0,0.91732487]